bitfinex/quotes_ETHUSD_20220213
["timestamp","ask_amount","ask_price","bid_price","bid_amount"]
[1644766550752,6.81232175,2940.5,2940.4,0.98504155]
[1644766550950,8.25943211,2940.5,2940.3,2.99162717]
[1644766551153,6.81232175,2940.5,2940.3,2.99162717]
[1644766551593,1.44711009,2940.4,2940.3,2.99162717]
[1644766551793,1.44711009,2940.4,2940.3,2.14155717]
[1644766552193,6.80717748,2940.5,2940.3,2.14155717]
[1644766552393,1.44715105,2940.4,2940.3,2.14155717]
[1644766552594,2.62793517,2940.4,2940.2,3.15057]
[1644766552796,1.18078412,2940.4,2940.3,1.0]
[1644766552995,2.62799877,2940.4,2940.3,1.0]
[1644766553194,2.62799877,2940.4,2940.2,1.70045]
[1644766553195,1.44721465,2940.4,2940.2,1.70045]
[1644766553395,1.44721465,2940.4,2940.2,2.00045]
[1644766554195,1.45269212,2940.4,2940.2,2.00045]
[1644766554395,0.00547747,2940.4,2940.2,2.00045]
[1644766554595,1.44715547,2940.3,2940.2,2.00045]
[1644766554795,0.00547747,2940.4,2940.2,2.00045]
[1644766555243,6.80566306,2940.5,2940.3,0.85009]
[1644766555443,6.8017,2940.5,2940.4,1.70019]
[1644766555643,8.24879917,2940.5,2940.4,2.00019]
[1644766555846,8.27278187,2940.5,2940.4,3.00019]
[1644766560093,8.27278187,2940.5,2940.2,0.9801151]
[1644766560293,1.44709917,2940.4,2940.2,0.4299751]
[1644766560497,2.41955056,2940.4,2940.1,0.3]
[1644766560693,1.44709917,2940.3,2940.0,0.3]
[1644766560895,1.44709917,2940.2,2939.9,2.55058]
[1644766561097,6.85454099,2940.5,2940.0,0.3]
[1644766561098,1.44709917,2940.1,2940.0,0.3]
[1644766561300,1.44709917,2940.1,2939.6,0.3]
[1644766561301,1.45106223,2940.1,2939.6,0.3]
[1644766561500,1.44709917,2940.0,2939.5,3.9151]
[1644766561696,0.00396306,2940.1,2939.5,3.9151]
[1644766561697,1.45106223,2940.1,2939.5,3.9151]
[1644766561896,0.85056,2939.8,2939.5,3.9151]
[1644766562097,1.44709917,2939.7,2939.5,3.9151]
[1644766562296,1.44709917,2939.7,2939.1,1.70104]
[1644766562547,1.44709917,2939.6,2939.1,1.70104]
[1644766562740,1.44709917,2939.5,2939.1,1.70104]
[1644766562939,1.44709917,2939.5,2939.1,0.85053]
[1644766563340,1.44709917,2939.5,2939.2,0.85047]
[1644766563840,1.44709917,2939.5,2939.2,1.70093]
[1644766564044,0.0106401,2939.7,2939.2,1.70093]
[1644766564241,1.44753028,2939.6,2939.3,0.3]
[1644766564443,1.44753028,2939.6,2939.4,0.85044]
[1644766564844,1.44753028,2939.6,2939.4,1.85044]
[1644766565049,0.01064038,2939.7,2939.4,1.85044]
[1644766565248,1.44745544,2939.6,2939.4,1.85044]
[1644766565447,1.44745544,2939.6,2939.4,2.70088]
[1644766565648,1.44745544,2939.6,2939.4,3.5513]
[1644766565849,1.47226331,2939.6,2939.5,0.3]
[1644766573149,0.02480787,2939.6,2939.5,0.3]
[1644766573550,0.02480787,2939.6,2939.5,20.21]
[1644766573784,0.02480787,2939.6,2939.5,21.21]
[1644766574886,0.02480787,2939.6,2939.5,21.38]
[1644766575291,0.03447702,2939.7,2939.6,4.9]
[1644766575491,0.03447702,2939.7,2939.6,5.07]
[1644766575693,0.02383669,2939.7,2939.6,6.07]
[1644766576291,0.02383669,2939.7,2939.6,1.17]
[1644766576993,0.02383669,2939.7,2939.5,5.68336]
[1644766578246,0.03447708,2939.7,2939.5,5.68336]
[1644766578446,0.03447708,2939.7,2939.6,1.0]
[1644766578647,1.48186922,2939.7,2939.6,1.0]
[1644766579346,1.47122883,2939.7,2939.5,3.00026]
[1644766579546,0.02383669,2939.7,2939.5,3.00026]
[1644766580348,1.44743197,2939.6,2939.5,3.00026]
[1644766580548,1.44742167,2939.6,2939.5,2.15013]
[1644766580749,1.47045434,2939.6,2939.5,2.15013]
[1644766581149,0.02303588,2939.6,2939.5,2.15013]
[1644766581593,0.02303588,2939.6,2939.5,2.32013]
[1644766582395,0.02303588,2939.6,2939.5,22.23013]
[1644766583992,0.02383669,2939.7,2939.6,24.51]
[1644766584194,0.02383669,2939.7,2939.6,25.51]
[1644766584394,0.03447699,2939.7,2939.6,25.51]
[1644766585242,0.02383669,2939.7,2939.6,25.51]
[1644766588046,0.01064031,2939.8,2939.7,21.61026]
[1644766588246,0.01064031,2939.8,2939.7,23.48046]
[1644766588447,0.01064031,2939.8,2939.7,24.48046]
[1644766588890,0.00396306,2940.5,2940.3,20.80606047]
[1644766589092,1.44703059,2940.4,2940.3,20.80606047]
[1644766589289,0.00396306,2941.0,2940.4,20.21]
[1644766589489,1.44700773,2940.9,2940.4,20.21]
[1644766590892,1.44700773,2940.9,2940.6,0.85002]
[1644766591095,1.44700773,2940.9,2940.5,2.45653315]
[1644766591294,1.44700773,2940.8,2940.5,2.45653315]
[1644766591992,0.87734909,2940.7,2940.6,1.70004]
[1644766592194,1.44700773,2940.8,2940.1,1.70052]
[1644766592393,1.45097079,2940.8,2940.1,1.70052]
[1644766592639,0.64617438,2940.7,2940.1,1.70052]
[1644766592841,0.01519932,2940.6,2940.1,1.71175834]
[1644766593041,1.44700773,2940.5,2940.1,1.71175834]
[1644766593238,1.45097079,2940.5,2940.2,1.70066]
[1644766593440,1.45097079,2940.5,2940.2,2.00066]
[1644766593640,1.45097079,2940.5,2940.2,2.30066]
[1644766594042,1.46220723,2940.5,2940.2,2.30066]
[1644766594240,1.44700773,2940.4,2940.2,2.30066]
[1644766594442,1.44700773,2940.4,2940.3,0.85012]
[1644766595241,0.01123644,2940.5,2940.2,1.70046]
[1644766595445,1.44700773,2940.4,2940.2,1.70046]
[1644766595643,1.44700773,2940.4,2940.2,2.55078]
[1644766596394,1.44700773,2940.3,2940.2,1.70066]
[1644766597694,1.44700773,2940.3,2940.2,2.30066]
[1644766598695,0.01059166,2940.4,2940.2,2.30066]
[1644766598895,1.44700773,2940.3,2940.2,2.30066]
[1644766600050,0.01059166,2940.4,2940.2,2.30066]
[1644766600239,0.01059166,2940.4,2940.3,0.85018]
[1644766600654,1.45775273,2940.4,2940.3,0.85018]
[1644766600842,1.44716107,2940.4,2940.3,0.85018]
[1644766601043,1.44716107,2940.6,2940.4,0.85012]
[1644766601242,0.01059149,2940.5,2940.4,2.85039]
[1644766601462,1.45775256,2940.5,2940.4,2.85039]
[1644766602047,1.44716107,2940.5,2940.4,2.85039]
[1644766602247,1.44716107,2940.7,2940.4,2.85039]
[1644766602447,0.64617438,2940.9,2940.4,2.85039]
[1644766602448,1.45780649,2940.6,2940.5,0.85016]
[1644766603251,1.44716107,2940.6,2940.5,0.85016]
[1644766603449,1.44716107,2940.6,2940.5,1.70032]
[1644766604189,1.44716107,2940.6,2940.5,2.00032]
[1644766607199,1.45720842,2940.7,2940.5,2.00032]
[1644766607400,1.44716107,2940.6,2940.5,2.00032]
[1644766608444,0.01004735,2940.7,2940.5,2.00032]
[1644766608642,0.01004735,2940.7,2940.6,0.85014]
[1644766608842,1.45708379,2940.7,2940.6,0.85014]
[1644766609244,1.44703644,2940.7,2940.6,0.85014]
[1644766609443,1.44703644,2940.7,2940.6,1.70025]
[1644766609645,1.45710447,2940.8,2940.6,2.55039]
[1644766609843,1.44703644,2940.7,2940.6,3.7005]
[1644766610047,1.4509995,2940.7,2940.6,3.7005]
[1644766610246,1.44703644,2940.7,2940.6,3.7005]
[1644766611148,1.44703644,2940.7,2940.6,2.15698372]
[1644766611793,1.44703644,2940.7,2940.6,3.00712372]
[1644766611994,0.64617438,2941.0,2940.6,1.30687372]
[1644766611995,0.01010714,2940.8,2940.6,1.30687372]
[1644766612193,0.01010714,2940.8,2940.7,0.8502]
[1644766612395,1.45714991,2940.8,2940.7,0.8502]
[1644766612895,1.039198,2940.8,2940.7,24.2602]
[1644766613097,1.039198,2940.8,2940.7,0.8502]
[1644766613694,0.01010546,2940.9,2940.7,0.8502]
[1644766613895,0.01010546,2940.9,2940.7,2.00014]
[1644766614096,0.00396306,2941.2,2940.8,1.69992]
[1644766614295,0.00396306,2941.2,2940.8,1.99992]
[1644766615147,0.00396306,2941.2,2940.9,0.84997]
[1644766615347,6.8004,2941.1,2940.7,1.84994]
[1644766615546,0.65013744,2941.0,2940.7,1.01327503]
[1644766615745,0.64617438,2940.9,2940.7,0.01327503]
[1644766615946,0.64617438,2940.8,2940.7,0.01327503]
[1644766616751,2.0436978,2940.9,2940.7,0.01327503]
[1644766617151,2.2132978,2940.9,2940.7,0.01327503]
[1644766617352,3.0748953,2940.9,2940.7,0.01327503]
[1644766617554,3.0248953,2940.9,2940.7,0.01327503]
[1644766617756,3.01421496,2940.9,2940.7,0.01327503]
[1644766617954,3.0248664,2940.9,2940.7,0.01327503]
[1644766618356,0.8615975,2940.8,2940.7,0.01327503]
[1644766620199,0.8615975,2940.8,2940.2,1.71414188]
[1644766620399,0.64900025,2940.5,2940.3,0.01063402]
[1644766620600,0.88430576,2940.8,2940.4,0.85027]
[1644766620601,0.64900025,2940.6,2940.4,0.85027]
[1644766621807,0.64900025,2940.6,2940.4,1.70051]
[1644766622308,0.67170851,2940.8,2940.5,0.12]
[1644766622550,0.02270826,2940.8,2940.6,0.85004]
[1644766622939,0.02270826,2940.8,2940.6,1.70006]
[1644766623742,0.02270826,2940.8,2940.7,0.3]
[1644766623944,0.66774545,2940.8,2940.7,0.3]
[1644766624143,0.0187452,2940.8,2940.7,0.3]
[1644766624841,0.66774545,2940.8,2940.7,0.3]
[1644766625544,0.64900025,2940.8,2940.7,0.3]
[1644766627093,0.01066193,2940.9,2940.7,0.3]
[1644766627293,0.64900025,2940.9,2940.8,0.85006]
[1644766627693,0.65966218,2940.9,2940.8,0.85006]
[1644766628493,0.64900025,2940.9,2940.8,0.85006]
[1644766628993,0.64914863,2940.9,2940.8,1.70013]
[1644766629693,0.64914863,2940.9,2940.8,2.70013]
[1644766631142,0.64914863,2940.9,2940.8,1.15659399]
[1644766631345,0.66377372,2941.0,2940.8,1.15659399]
[1644766632145,0.65311169,2941.0,2940.8,1.15659399]
[1644766632347,0.01462501,2941.0,2940.8,1.45659399]
[1644766632549,0.01462501,2941.0,2940.8,1.62659399]
[1644766632748,0.01462501,2941.0,2940.8,2.47666399]
[1644766633149,2.11076465,2941.0,2940.8,1.62659399]
[1644766633349,1.44699101,2940.9,2940.8,1.62659399]
[1644766634590,2.09613964,2940.9,2940.8,1.62659399]
[1644766634790,2.09613964,2940.9,2940.8,0.17]
[1644766635189,2.11490696,2940.9,2940.8,0.17]
[1644766635795,1.46575833,2940.9,2940.8,1.47]
[1644766635995,1.46575833,2940.9,2940.8,1.3]
[1644766638045,1.10815833,2940.9,2940.8,1.3]
[1644766638246,0.63135833,2940.9,2940.8,1.3]
[1644766638447,0.49376081,2940.9,2940.8,21.38]
[1644766638847,0.14924325,2941.0,2940.9,24.16]
[1644766639047,0.14924325,2941.0,2940.9,24.33]
[1644766639247,0.14924325,2941.0,2940.9,25.33]
[1644766639447,0.14320484,2941.0,2940.9,21.08]
[1644766639847,0.14320484,2941.0,2940.9,21.2104]
[1644766640048,0.14320484,2941.0,2940.9,21.2088]
[1644766640249,0.14320484,2941.0,2940.9,21.08]
[1644766640450,0.14320484,2941.0,2940.9,21.2112]
[1644766640649,0.14320484,2941.0,2940.9,21.212]
[1644766640848,6.81163964,2941.1,2940.9,22.05937]
[1644766641052,6.81163964,2941.1,2941.0,21.75977]
[1644766641296,3.5134407,2941.1,2941.0,21.75977]
[1644766641503,0.00396306,2941.2,2941.0,21.75977]
[1644766641504,0.00396306,2941.2,2941.1,19.91]
[1644766641702,0.00396306,2941.8,2941.1,20.08]
[1644766641902,0.00396306,2941.8,2941.1,22.06645]
[1644766642101,0.00396306,2941.8,2941.2,21.75965]
[1644766642304,0.00396306,2941.8,2941.3,0.1698]
[1644766642503,0.00396306,2941.8,2941.3,20.0798]
[1644766642801,0.00396306,2941.8,2941.4,1.0]
[1644766643001,0.00396306,2941.8,2941.4,1.84971]
[1644766643203,0.00603935,2941.7,2941.5,0.84971]
[1644766643602,0.12523935,2941.7,2941.5,0.84971]
[1644766644203,0.1192,2941.7,2941.5,0.84971]
[1644766644403,0.12523935,2941.7,2941.5,0.84971]
[1644766644603,0.00603935,2941.7,2941.5,2.32488268]
[1644766644808,0.00294328,2941.8,2941.6,4.9]
[1644766645051,0.02415379,2942.2,2941.6,5.7495]
[1644766645242,0.00294328,2941.8,2941.7,1.84954]
[1644766645446,2.23775082,2941.9,2941.7,22.45866]
[1644766645643,0.8505,2942.5,2941.7,22.45866]
[1644766645644,0.00397995,2942.4,2941.8,9.24953]
[1644766645847,0.81894863,2943.0,2942.0,0.84952]
[1644766646047,1.1948,2943.2,2942.0,4.34952]
[1644766646048,0.64914863,2943.1,2942.0,4.34952]
[1644766646248,1.1948,2943.2,2942.2,0.84943]
[1644766646448,1.1657,2943.7,2942.3,2.71783]
[1644766646449,0.64914863,2943.4,2942.3,2.71783]
[1644766646648,0.64914863,2943.6,2942.4,26.60869]
[1644766646847,0.64914863,2943.6,2942.5,23.5798]
[1644766647050,0.64914863,2943.5,2942.5,0.84935]
[1644766647247,0.64914863,2943.3,2942.6,1.0]
[1644766647450,0.64914863,2943.3,2942.5,0.84935]
[1644766647647,0.76834863,2943.4,2942.5,0.84927]
[1644766647846,3.5,2943.3,2942.6,3.3978]
[1644766648049,3.5,2943.3,2941.8,0.25]
[1644766648050,5.00602572,2943.0,2941.8,0.25]
[1644766648249,0.64914863,2942.8,2941.8,0.25]
[1644766648448,0.64914863,2942.8,2941.4,0.15937624]
[1644766648449,3.5,2942.7,2941.4,0.15937624]
[1644766648648,0.1192,2942.5,2941.4,0.15937624]
[1644766648891,0.87935454,2941.6,2941.5,0.84989]
[1644766649091,0.87935454,2941.6,2941.4,0.15937624]
[1644766649291,3.6698,2942.2,2941.4,0.15937624]
[1644766649493,1.3332,2942.2,2941.4,0.15937624]
[1644766649691,1.3332,2942.2,2941.4,1.00930624]
[1644766649892,4.3615975,2942.6,2941.6,0.84986]
[1644766649893,0.64914863,2942.5,2941.6,0.84986]
[1644766650094,0.1698,2942.1,2941.6,0.84986]
[1644766650292,1.175309,2942.0,2941.6,0.84986]
[1644766650493,4.14914863,2942.5,2941.6,0.84986]
[1644766650692,0.64914863,2942.5,2941.4,1.00930624]
[1644766650893,3.5,2942.5,2941.4,0.84993]
[1644766651091,4.14914863,2942.5,2941.4,1.99984]
[1644766651293,4.14914863,2942.5,2940.5,2.67696]
[1644766651294,0.64914863,2942.4,2940.9,0.25]
[1644766651497,5.0,2942.2,2940.9,0.25]
[1644766651695,5.0,2942.2,2941.0,0.00522813]
[1644766651696,5.0,2942.0,2941.0,0.00522813]
[1644766651895,0.1698,2942.1,2941.0,0.00522813]
[1644766652097,0.1192,2942.0,2941.0,0.85527813]
[1644766652297,0.1192,2942.0,2941.0,0.00522813]
[1644766652298,0.8664851,2941.2,2941.0,0.00522813]
[1644766652556,0.8664851,2941.2,2940.4,3.7269]
[1644766652557,0.01045625,2940.9,2940.4,3.7269]
[1644766652752,0.01045625,2940.9,2940.5,0.85017]
[1644766653447,0.01045625,2940.9,2940.5,1.70034]
[1644766653647,0.01045625,2940.9,2940.3,0.85021]
[1644766653847,0.01045625,2940.9,2940.2,1.70031]
[1644766653848,0.01045625,2940.9,2940.2,1.70039]
[1644766654050,0.01045625,2940.9,2940.6,0.00522463]
[1644766655048,0.01045625,2940.9,2940.2,19.91]
[1644766655249,0.01045625,2940.9,2940.3,19.91]
[1644766655450,0.01045625,2940.9,2940.3,20.91]
[1644766656050,0.01045625,2940.9,2940.6,1.70024]
[1644766656292,0.01045625,2940.9,2940.6,2.55036]
[1644766656495,0.01045625,2940.9,2939.9,6.2202]
[1644766656695,0.01045625,2940.9,2940.0,3.5]
[1644766656897,0.01045625,2940.9,2940.0,4.5]
[1644766657095,0.01045625,2940.9,2940.5,1.70007]
[1644766657496,0.01045625,2940.9,2940.6,0.85015]
[1644766657699,0.01045625,2940.9,2940.6,0.86093289]
[1644766658295,0.01045625,2940.9,2940.6,0.01078289]
[1644766658713,0.01045625,2940.9,2940.3,2.55042]
[1644766658899,0.01045625,2940.9,2940.6,0.17523098]
[1644766659099,0.01045625,2940.9,2940.6,0.00523098]
[1644766659800,1.44712356,2940.8,2939.8,1.1871]
[1644766660053,1.44712356,2940.8,2940.6,0.00523098]
[1644766660054,2.39789732,2940.8,2940.6,0.00523098]
[1644766660250,1.44712356,2940.7,2940.6,0.00523098]
[1644766660845,1.44712356,2940.7,2940.6,0.14340962]
[1644766661045,1.44712356,2940.7,2940.6,0.13817864]
[1644766661247,0.1192,2940.8,2940.6,0.13817864]
[1644766661452,0.01045625,2940.9,2940.6,0.13817864]
[1644766661648,1.44706764,2940.8,2940.6,0.13817864]
[1644766662451,1.44706764,2940.8,2940.6,0.1494398]
[1644766663255,0.01045625,2940.9,2940.6,0.1494398]
[1644766663452,1.44706517,2940.8,2940.6,0.13817864]
[1644766663652,1.44706517,2940.8,2940.6,0.1494398]
[1644766664696,1.44706517,2940.8,2940.6,0.13817864]
[1644766664995,1.44706517,2940.8,2940.6,0.1494398]
[1644766665594,1.44709082,2940.7,2940.6,0.1494398]
[1644766665799,0.89465656,2940.9,2940.0,3.40081]
[1644766665800,1.44709082,2940.8,2940.5,0.13109004]
[1644766665995,1.44709082,2940.7,2940.5,0.13109004]
[1644766666196,0.89465656,2940.9,2940.6,0.01126116]
[1644766666400,1.44715403,2940.8,2940.6,0.01126116]
[1644766666999,1.44715403,2940.8,2940.5,0.13109004]
[1644766667199,1.44715403,2940.8,2940.6,0.01126116]
[1644766668249,1.44715403,2940.8,2940.5,0.13109004]
[1644766668453,1.44715403,2940.8,2940.6,0.01126116]
[1644766669350,1.44715403,2940.8,2940.5,0.13109004]
[1644766669750,1.44715403,2940.8,2940.6,0.01126116]
[1644766669952,5.0,2940.7,2940.6,0.01126116]
[1644766670155,6.44715403,2940.7,2940.6,0.01126116]
[1644766670355,8.39630266,2940.7,2940.6,0.01126116]
[1644766670552,4.9,2940.6,2939.8,0.17]
[1644766670751,5.0,2940.4,2939.8,0.17]
[1644766670956,1.04494815,2940.2,2939.8,0.17]
[1644766671152,1.44715403,2940.1,2939.8,0.17]
[1644766671697,6.44715403,2940.1,2939.8,0.17]
[1644766671899,0.1192,2939.8,2939.3,0.25]
[1644766672096,0.1192,2939.6,2939.2,0.00314555]
[1644766672295,0.1192,2939.6,2938.8,0.00314555]
[1644766672296,2.29797403,2939.5,2938.8,0.00314555]
[1644766672496,0.1192,2939.4,2938.8,0.00314555]
[1644766672897,0.1701,2939.8,2938.8,0.00314555]
[1644766673097,6.2234,2940.1,2938.8,0.00314555]
[1644766673098,1.44768041,2939.7,2938.8,0.00314555]
[1644766673297,0.1701,2940.0,2939.0,0.00522326]
[1644766673502,0.1701,2940.0,2939.2,1.701]
[1644766673503,1.44754392,2939.9,2939.2,1.701]
[1644766673698,0.88114753,2939.4,2939.2,0.00314555]
[1644766674299,0.88114753,2939.4,2938.7,0.00314555]
[1644766674300,0.00943664,2939.0,2938.7,0.00314555]
[1644766674700,0.00943664,2939.0,2938.5,0.17324555]
[1644766674900,0.00943664,2939.0,2938.6,0.00314555]
[1644766675151,1.01126595,2938.9,2938.4,0.17324555]
[1644766675649,1.01126595,2938.9,2938.5,0.01125932]
[1644766675953,0.00943664,2939.0,2938.9,0.12359106]
[1644766676854,1.03191231,2939.0,2938.9,0.12359106]
[1644766679008,2.65006155,2939.0,2938.9,0.12359106]
[1644766679211,1.20201231,2939.0,2938.9,0.12359106]
[1644766680408,1.20201231,2939.0,2938.5,0.00314555]
[1644766680409,2.5532,2938.9,2938.5,0.00314555]
[1644766680607,1.70216,2938.9,2938.8,0.01125879]
[1644766680808,8.32035818,2938.9,2938.8,0.01125879]
[1644766681509,0.85108,2938.8,2938.1,0.00314555]
[1644766681708,0.85108,2938.6,2938.3,0.04504264]
[1644766682109,1.06347333,2938.5,2938.3,0.04504264]
[1644766682760,1.06347333,2938.5,2937.7,0.1701]
[1644766682761,1.91461333,2938.5,2937.7,0.00314555]
[1644766682964,6.70231,2938.4,2938.3,0.01125977]
[1644766683965,6.70231,2938.4,2937.5,7.48]
[1644766683966,0.85125,2938.2,2937.6,0.00314555]
[1644766684162,0.85125,2938.2,2937.8,0.04504619]
[1644766684163,5.85123,2938.1,2937.8,0.04504619]
[1644766684862,5.0,2938.1,2937.8,0.04504619]
[1644766685063,0.92912803,2938.0,2937.6,0.00314555]
[1644766685464,0.92912803,2938.0,2937.8,0.01126057]
[1644766686303,0.92912803,2938.0,2937.6,0.00314555]
[1644766686507,0.92912803,2938.0,2937.8,0.01126066]
[1644766687507,0.92912803,2938.0,2937.3,0.00314555]
[1644766687709,0.1192,2937.4,2937.3,0.04819493]
[1644766688310,1.05579441,2937.5,2937.3,0.04819493]
[1644766688509,1.05579441,2937.5,2937.3,0.04504938]
[1644766688710,1.05579441,2937.5,2937.1,0.00314555]
[1644766689012,1.05579441,2937.5,2937.3,0.00522301]
[1644766689609,0.1192,2937.8,2937.3,0.00522301]
[1644766689810,0.1192,2937.8,2937.3,0.00314555]
[1644766690047,0.1192,2937.8,2937.3,0.01441227]
[1644766691154,1.16995066,2937.6,2937.3,0.00314555]
[1644766691356,1.16995066,2937.6,2937.4,0.01126645]
[1644766692356,1.16995066,2937.6,2937.3,0.85429555]
[1644766692556,1.16995066,2937.6,2937.4,0.01126654]
[1644766693456,1.16995066,2937.6,2937.3,0.00314555]
[1644766693655,1.16995066,2937.6,2937.4,0.01126654]
[1644766694304,0.1192,2937.8,2937.4,0.01126654]
[1644766694705,0.1192,2937.8,2937.1,0.00314555]
[1644766694903,0.1192,2937.8,2937.5,0.01126636]
[1644766695702,1.01537114,2937.7,2937.5,0.01126636]
[1644766695903,1.01537114,2937.7,2937.5,0.10953664]
[1644766696104,0.1192,2937.8,2937.5,0.12080291]
[1644766696304,0.1192,2937.8,2937.5,0.12394846]
[1644766697107,0.1192,2937.8,2937.5,0.11268219]
[1644766697304,0.1192,2937.8,2937.5,0.12394846]
[1644766697543,1.22193641,2937.8,2937.5,0.12394846]
[1644766697745,1.22193641,2937.8,2937.5,0.97506846]
[1644766698349,1.22193641,2937.8,2937.5,0.96380219]
[1644766698550,0.1192,2937.8,2937.5,0.12394846]
[1644766698950,0.1192,2937.8,2937.5,0.97504846]
[1644766699552,0.1192,2937.8,2937.5,0.96378219]
[1644766699751,0.1192,2937.8,2937.5,0.12394846]
[1644766700551,0.1192,2937.8,2937.7,0.02346359]
[1644766701604,0.1701,2938.4,2937.7,0.02346359]
[1644766701802,1.17880708,2938.4,2937.9,0.85097]
[1644766702004,1.17880708,2938.4,2938.0,0.00314555]
[1644766702802,0.1192,2938.2,2938.0,0.00314555]
[1644766703003,0.1192,2938.2,2938.0,3.33790473]
[1644766703207,0.00943664,2939.0,2938.1,0.85079]
[1644766703404,0.00943664,2939.0,2938.2,3.5]
[1644766703703,0.00943664,2939.0,2938.3,0.17333039]
[1644766703904,0.00943664,2939.0,2938.3,0.00323039]
[1644766704124,0.00943664,2939.0,2938.4,1.02076]
[1644766704303,0.00943664,2939.0,2938.5,0.00323039]
[1644766704507,0.00943664,2939.0,2938.4,1.01445922]
[1644766704705,1.06218812,2938.6,2938.5,0.0112645]
[1644766705755,0.00943664,2939.0,2938.0,3.44860547]
[1644766705756,0.94317555,2938.1,2938.0,3.44860547]
[1644766705956,5.0,2938.8,2938.0,0.04506547]
[1644766706156,5.0,2938.8,2938.1,0.15771978]
[1644766706157,0.03642289,2938.3,2938.1,0.15771978]
[1644766707162,0.03642289,2938.3,2938.1,0.16898508]
[1644766707660,1.03048701,2938.2,2938.1,0.16898508]
[1644766707859,0.03642289,2938.3,2938.1,0.15771978]
[1644766708260,0.03642289,2938.3,2938.1,0.16898508]
[1644766708904,0.15562289,2938.3,2938.1,0.16898508]
[1644766709203,1.00672289,2938.3,2938.1,0.15771978]
[1644766709402,1.00672289,2938.3,2938.1,0.16895468]
[1644766709604,2.15936618,2938.3,2938.1,0.16895468]
[1644766710407,2.15936618,2938.3,2938.1,0.15771978]
[1644766710605,2.15936618,2938.3,2938.1,0.0112349]
[1644766710606,2.18359638,2938.3,2938.1,0.0112349]
[1644766711006,1.33249638,2938.3,2938.1,0.0112349]
[1644766711507,1.33249638,2938.3,2938.0,0.15071348]
[1644766711705,1.33249638,2938.3,2938.1,0.0112349]
[1644766712752,1.33249638,2938.3,2938.0,0.15071348]
[1644766712954,1.33249638,2938.3,2938.1,0.0112653]
[1644766713152,1.44826928,2938.2,2938.1,0.0112653]
[1644766713856,4.9,2938.1,2937.5,7.73]
[1644766714055,6.44826928,2938.0,2936.9,4.365]
[1644766714254,1.44826928,2937.9,2937.6,0.04506831]
[1644766714660,0.1701,2938.2,2937.6,0.04506831]
[1644766714860,0.88972559,2937.7,2937.6,0.04506831]
[1644766715059,0.88972559,2937.7,2937.2,1.70213]
[1644766715458,0.88972559,2937.7,2937.3,1.70213]
[1644766715659,0.88972559,2937.7,2937.5,0.85112]
[1644766716304,0.88972559,2937.7,2937.5,1.02122]
[1644766716903,0.88972559,2937.7,2937.3,1.02125]
[1644766717105,0.88972559,2937.7,2937.3,0.1701]
[1644766717305,1.44844236,2937.6,2937.3,0.1701]
[1644766717508,1.44844236,2937.6,2937.1,0.1701]
[1644766717706,1.44844236,2937.6,2937.4,0.01080416]
[1644766718707,1.44844236,2937.6,2936.8,9.6025]
[1644766718907,1.15851159,2937.0,2936.9,0.04322313]
[1644766719606,0.1192,2937.9,2936.9,0.04322313]
[1644766719806,1.448554,2937.8,2936.9,0.89770056]
[1644766720052,1.448554,2937.8,2937.3,0.01080434]
[1644766720449,3.151134,2937.8,2937.3,0.01080434]
[1644766720653,3.151134,2937.8,2937.4,0.08911139]
[1644766720654,0.03423938,2937.6,2937.4,0.08911139]
[1644766720855,1.448554,2937.5,2937.4,0.08911139]
[1644766721456,1.448554,2937.5,2937.4,0.09991555]
[1644766722357,1.448554,2937.5,2937.4,0.08911139]
[1644766724005,1.448554,2937.5,2937.3,0.01066125]
[1644766724204,5.85138,2937.4,2937.3,0.01066125]
[1644766724404,8.10989202,2937.4,2937.3,0.01066125]
[1644766724610,8.10989202,2937.4,2936.7,0.00322705]
[1644766724611,0.10662529,2936.8,2936.5,0.00322705]
[1644766724812,1.448554,2936.7,2936.5,0.00322705]
[1644766725011,1.448554,2936.7,2936.3,0.85402705]
[1644766725012,0.89500921,2936.6,2936.3,0.85402705]
[1644766725211,0.89500921,2936.6,2936.3,0.8508]
[1644766725615,0.10662529,2936.8,2936.3,1.70223]
[1644766725811,0.10662529,2936.8,2936.4,4.35466705]
[1644766726010,0.10662529,2936.8,2936.4,0.85466705]
[1644766726209,0.10662529,2936.8,2936.4,2.55719705]
[1644766726410,0.10662529,2936.8,2936.4,0.85986476]
[1644766726611,0.93870458,2936.5,2936.4,0.85986476]
[1644766726812,0.93870458,2936.5,2936.4,2.55928771]
[1644766727214,0.93870458,2936.5,2936.4,2.55409]
[1644766727650,0.93870458,2936.5,2936.4,1.70268]
[1644766727954,0.93870458,2936.5,2936.4,1.87278]
[1644766728452,0.93870458,2936.5,2936.3,0.8508]
[1644766728654,0.93870458,2936.5,2936.3,0.85564794]
[1644766729657,0.93870458,2936.5,2936.3,0.8508]
[1644766729860,0.93870458,2936.5,2936.3,1.71316701]
[1644766730058,0.93870458,2936.5,2936.3,0.86170701]
[1644766730756,0.93870458,2936.5,2936.4,0.08429387]
[1644766730757,1.02155976,2936.5,2936.4,0.08429387]
[1644766733408,1.02155976,2936.5,2936.3,0.86082451]
[1644766733606,1.44899937,2936.4,2936.3,0.01002451]
[1644766733804,1.02155976,2936.5,2936.3,0.01002451]
[1644766734406,0.1192,2936.3,2936.0,0.00322705]
[1644766734605,0.1192,2936.3,2935.8,0.00322705]
[1644766734905,0.1192,2936.3,2935.8,0.04010437]
[1644766735350,5.75177,2936.2,2935.2,3.7144]
[1644766735556,1.70417,2936.0,2935.2,11.1944]
[1644766735755,1.14959658,2935.8,2935.2,3.7144]
[1644766736152,1.14959658,2935.8,2935.0,3.5]
[1644766736153,0.1703,2935.7,2935.0,3.5]
[1644766736355,1.02226,2935.7,2934.9,1.2379]
[1644766736655,1.0224,2935.7,2934.9,1.2379]
[1644766736856,1.0224,2935.7,2934.7,7.2335]
[1644766736857,0.8521,2935.7,2934.7,7.2335]
[1644766737056,1.0224,2935.7,2934.4,0.1703]
[1644766737656,2.72633,2935.7,2934.4,0.1703]
[1644766737856,0.85194,2935.5,2934.5,0.85196]
[1644766738055,0.85194,2935.5,2934.6,0.1203]
[1644766738259,0.85194,2935.5,2934.5,1.32226]
[1644766738556,0.9996811,2934.6,2934.5,1.32226]
[1644766738816,0.1703,2935.7,2934.5,1.62226]
[1644766739000,0.1703,2935.7,2934.6,2.55558]